[Event "Early-Titled-Tuesday-Blitz-January-23-2024"]
[Site "Chess.com"]
[Date "2024.01.23"]
[Round "2"]
[White "MightyGMpretender"]
[Black "funnyselfmate"]
[Result "1-0"]
[WhiteElo "2748"]
[BlackElo "2486"]
[TimeControl "180+1"]
[EndTime "8:18:08 PST"]
[Termination "MightyGMpretender won by resignation"]

1. Nf3 {[%clk 0:03:00.9]} 1... d5 {[%clk 0:02:44.8]} 2. e3 {[%clk 0:03:00.7]}
2... c6 {[%clk 0:02:45]} 3. c4 {[%clk 0:03:00.5]} 3... Nf6 {[%clk 0:02:45.9]} 4.
Nc3 {[%clk 0:03:00.7]} 4... e6 {[%clk 0:02:46.5]} 5. b3 {[%clk 0:02:56.6]} 5...
Bd6 {[%clk 0:02:42.7]} 6. d4 {[%clk 0:02:54.8]} 6... Nbd7 {[%clk 0:02:41.7]} 7.
Bd3 {[%clk 0:02:53.6]} 7... O-O {[%clk 0:02:42]} 8. O-O {[%clk 0:02:53.6]} 8...
e5 {[%clk 0:02:41.2]} 9. cxd5 {[%clk 0:02:50.9]} 9... cxd5 {[%clk 0:02:40.9]}
10. dxe5 {[%clk 0:02:47.9]} 10... Nxe5 {[%clk 0:02:40.5]} 11. Be2 {[%clk
0:02:48.4]} 11... Nxf3+ {[%clk 0:02:27.3]} 12. Bxf3 {[%clk 0:02:48.6]} 12... Be5
{[%clk 0:02:28.2]} 13. Bb2 {[%clk 0:02:49.2]} 13... Ne4 {[%clk 0:02:28.3]} 14.
Rc1 {[%clk 0:02:31.9]} 14... Be6 {[%clk 0:02:26.9]} 15. Qe2 {[%clk 0:02:23.4]}
15... Qf6 {[%clk 0:01:21.6]} 16. Na4 {[%clk 0:01:19.7]} 16... Ng5 {[%clk
0:01:14]} 17. Bxe5 {[%clk 0:01:17.4]} 17... Nxf3+ {[%clk 0:01:13.9]} 18. Qxf3
{[%clk 0:01:15.3]} 18... Qxe5 {[%clk 0:01:14.1]} 19. Nc5 {[%clk 0:01:07.6]}
19... Rac8 {[%clk 0:01:00.4]} 20. Nd3 {[%clk 0:00:56.3]} 20... Qe4 {[%clk
0:00:59.7]} 21. Qxe4 {[%clk 0:00:41.3]} 21... dxe4 {[%clk 0:01:00.6]} 22. Nf4
{[%clk 0:00:41.9]} 22... Bg4 {[%clk 0:00:56.4]} 23. h3 {[%clk 0:00:38.2]} 23...
Bd7 {[%clk 0:00:56.5]} 24. Nd5 {[%clk 0:00:37.5]} 24... Rfe8 {[%clk 0:00:33.3]}
25. Rxc8 {[%clk 0:00:36.9]} 25... Bxc8 {[%clk 0:00:34.1]} 26. Rc1 {[%clk
0:00:37.2]} 26... Kf8 {[%clk 0:00:33.7]} 27. Rc7 {[%clk 0:00:35.6]} 27... Rd8
{[%clk 0:00:33.5]} 28. Nc3 {[%clk 0:00:32.9]} 28... f5 {[%clk 0:00:21.9]} 29.
Nb5 {[%clk 0:00:32.4]} 29... a6 {[%clk 0:00:20.3]} 30. Nd4 {[%clk 0:00:32.2]}
30... b5 {[%clk 0:00:18.1]} 31. Kh2 {[%clk 0:00:20.7]} 31... Bd7 {[%clk
0:00:18.3]} 32. Kg3 {[%clk 0:00:20]} 32... Ke8 {[%clk 0:00:18.1]} 33. Kf4 {[%clk
0:00:20]} 33... g6 {[%clk 0:00:18.4]} 34. Ke5 {[%clk 0:00:20.4]} 34... Rc8
{[%clk 0:00:17.8]} 35. Rxc8+ {[%clk 0:00:18.8]} 35... Bxc8 {[%clk 0:00:18.7]}
36. Kd6 {[%clk 0:00:18.4]} 36... g5 {[%clk 0:00:16.9]} 37. Ke5 {[%clk
0:00:17.6]} 37... f4 {[%clk 0:00:15.2]} 38. exf4 {[%clk 0:00:17.5]} 38... gxf4
{[%clk 0:00:16.1]} 39. Kxf4 {[%clk 0:00:17.9]} 39... Bb7 {[%clk 0:00:15.5]} 40.
Nf5 {[%clk 0:00:17.6]} 40... Kd7 {[%clk 0:00:14.1]} 41. Ng3 {[%clk 0:00:17.9]}
41... e3 {[%clk 0:00:13.8]} 42. f3 {[%clk 0:00:13.2]} 42... a5 {[%clk
0:00:13.1]} 43. Kxe3 {[%clk 0:00:13.1]} 43... Kd6 {[%clk 0:00:13.8]} 44. Kd4
{[%clk 0:00:13.3]} 44... a4 {[%clk 0:00:13.5]} 45. Ne4+ {[%clk 0:00:13.6]} 45...
Kc6 {[%clk 0:00:13.3]} 46. bxa4 {[%clk 0:00:12.6]} 46... bxa4 {[%clk 0:00:13.6]}
47. a3 {[%clk 0:00:13.3]} 47... Kb5 {[%clk 0:00:13.7]} 48. Nc3+ {[%clk
0:00:13.3]} 48... Ka5 {[%clk 0:00:13.6]} 49. Kc5 {[%clk 0:00:13.6]} 49... Bc8
{[%clk 0:00:13.8]} 50. Nd5 {[%clk 0:00:13.3]} 50... Be6 {[%clk 0:00:14.2]} 51.
f4 {[%clk 0:00:12.8]} 51... Bf5 {[%clk 0:00:14]} 52. h4 {[%clk 0:00:12.6]} 52...
h5 {[%clk 0:00:13.2]} 53. g3 {[%clk 0:00:13.1]} 53... Be4 {[%clk 0:00:13.4]} 54.
Nb4 {[%clk 0:00:13.4]} 54... Bf5 {[%clk 0:00:13.4]} 55. Nc6+ {[%clk 0:00:13.7]}
55... Ka6 {[%clk 0:00:13.7]} 56. Nd4 {[%clk 0:00:13.7]} 56... Be4 {[%clk
0:00:12.9]} 57. f5 {[%clk 0:00:14.2]} 1-0

[Event "Early-Titled-Tuesday-Blitz-January-23-2024"]
[Site "Chess.com"]
[Date "2024.01.23"]
[Round "2"]
[White "Zurability"]
[Black "Muslim_player_05"]
[Result "0-1"]
[WhiteElo "2749"]
[BlackElo "2529"]
[TimeControl "180+1"]
[EndTime "8:18:09 PST"]
[Termination "Muslim_player_05 won by resignation"]

1. Nf3 {[%clk 0:03:00.9]} 1... Nf6 {[%clk 0:02:59.9]} 2. d4 {[%clk 0:02:59.1]}
2... g6 {[%clk 0:02:59.1]} 3. c4 {[%clk 0:02:59.4]} 3... Bg7 {[%clk 0:02:58.5]}
4. Nc3 {[%clk 0:03:00]} 4... d6 {[%clk 0:02:58.5]} 5. e4 {[%clk 0:03:00]} 5...
O-O {[%clk 0:02:59.1]} 6. Be2 {[%clk 0:03:00.2]} 6... e5 {[%clk 0:02:59.5]} 7.
Be3 {[%clk 0:03:00.7]} 7... Ng4 {[%clk 0:02:58.2]} 8. Bg5 {[%clk 0:03:00.6]}
8... f6 {[%clk 0:02:58.2]} 9. Bc1 {[%clk 0:02:53.9]} 9... Nc6 {[%clk 0:02:55.1]}
10. O-O {[%clk 0:02:52.1]} 10... Nh6 {[%clk 0:02:28.4]} 11. Be3 {[%clk
0:02:35.5]} 11... Ng4 {[%clk 0:02:26.6]} 12. Bc1 {[%clk 0:02:35.7]} 12... Nh6
{[%clk 0:02:26.5]} 13. h3 {[%clk 0:02:36.3]} 13... exd4 {[%clk 0:02:17.2]} 14.
Nxd4 {[%clk 0:02:36.2]} 14... f5 {[%clk 0:02:17.8]} 15. Nxc6 {[%clk 0:02:30]}
15... bxc6 {[%clk 0:02:18.7]} 16. Bf3 {[%clk 0:02:22.3]} 16... Bd7 {[%clk
0:02:05.9]} 17. Bxh6 {[%clk 0:02:04.6]} 17... Bxh6 {[%clk 0:02:05.7]} 18. exf5
{[%clk 0:02:05.5]} 18... Rxf5 {[%clk 0:02:04.9]} 19. Bg4 {[%clk 0:01:58.7]}
19... Rf4 {[%clk 0:01:59.5]} 20. Bxd7 {[%clk 0:01:53.8]} 20... Qxd7 {[%clk
0:02:00.4]} 21. Qd3 {[%clk 0:01:53.9]} 21... Bg7 {[%clk 0:01:56.9]} 22. b3
{[%clk 0:01:45.1]} 22... Re8 {[%clk 0:01:53]} 23. Rae1 {[%clk 0:01:43.9]} 23...
Rf5 {[%clk 0:01:36]} 24. Rxe8+ {[%clk 0:01:40.4]} 24... Qxe8 {[%clk 0:01:36.9]}
25. Ne4 {[%clk 0:01:17.7]} 25... Qe5 {[%clk 0:01:28.3]} 26. Ng3 {[%clk
0:01:16.1]} 26... Rf4 {[%clk 0:01:24.7]} 27. Rd1 {[%clk 0:00:57.1]} 27... Rf8
{[%clk 0:01:19.5]} 28. Qe4 {[%clk 0:00:49]} 28... Qxe4 {[%clk 0:01:03.4]} 29.
Nxe4 {[%clk 0:00:48.9]} 29... Re8 {[%clk 0:01:04.3]} 30. f3 {[%clk 0:00:48.9]}
30... c5 {[%clk 0:01:04.1]} 31. Kf1 {[%clk 0:00:39.7]} 31... Bd4 {[%clk
0:01:01.6]} 32. Ke2 {[%clk 0:00:39.4]} 32... c6 {[%clk 0:00:54.5]} 33. Kd3
{[%clk 0:00:29]} 33... d5 {[%clk 0:00:53.2]} 34. Nd6 {[%clk 0:00:28.2]} 34...
Re3+ {[%clk 0:00:41.2]} 35. Kd2 {[%clk 0:00:28.2]} 35... Re6 {[%clk 0:00:37.8]}
36. Nb7 {[%clk 0:00:27.6]} 36... dxc4 {[%clk 0:00:27.9]} 37. bxc4 {[%clk
0:00:26.4]} 37... Re3 {[%clk 0:00:26.1]} 38. Rc1 {[%clk 0:00:13.5]} 38... Ra3
{[%clk 0:00:25.4]} 39. Rc2 {[%clk 0:00:14]} 39... Kf8 {[%clk 0:00:21.1]} 40. Nd8
{[%clk 0:00:13.5]} 40... Ra6 {[%clk 0:00:19.4]} 41. Ne6+ {[%clk 0:00:13]} 41...
Ke7 {[%clk 0:00:19.1]} 42. Ng5 {[%clk 0:00:10.3]} 42... h6 {[%clk 0:00:18.8]}
43. Ne4 {[%clk 0:00:10.7]} 43... Ra3 {[%clk 0:00:18.4]} 44. Ke2 {[%clk
0:00:09.8]} 44... Ke6 {[%clk 0:00:18.9]} 45. Nd2 {[%clk 0:00:09.5]} 45... Kf5
{[%clk 0:00:18.6]} 46. Nb3 {[%clk 0:00:09.8]} 46... Kf4 {[%clk 0:00:18.8]} 47.
Kd3 {[%clk 0:00:06.6]} 47... a5 {[%clk 0:00:17.7]} 48. Re2 {[%clk 0:00:04.7]}
48... a4 {[%clk 0:00:18]} 49. Re4+ {[%clk 0:00:04.1]} 49... Kf5 {[%clk
0:00:18.4]} 50. Kc2 {[%clk 0:00:03.1]} 50... axb3+ {[%clk 0:00:18.3]} 51. axb3
{[%clk 0:00:04]} 51... Ra2+ {[%clk 0:00:18.6]} 52. Kd3 {[%clk 0:00:04.1]} 52...
Rxg2 {[%clk 0:00:18.8]} 0-1

[Event "Early-Titled-Tuesday-Blitz-January-23-2024"]
[Site "Chess.com"]
[Date "2024.01.23"]
[Round "2"]
[White "oganromchess"]
[Black "Boninknights"]
[Result "0-1"]
[WhiteElo "2526"]
[BlackElo "2343"]
[TimeControl "180+1"]
[EndTime "8:18:09 PST"]
[Termination "Boninknights won on time"]

1. e4 {[%clk 0:02:59.3]} 1... c6 {[%clk 0:02:58.6]} 2. Nc3 {[%clk 0:02:58.4]}
2... a6 {[%clk 0:02:57.3]} 3. f4 {[%clk 0:02:41.2]} 3... d5 {[%clk 0:02:55.4]}
4. Nf3 {[%clk 0:02:39.9]} 4... Bg4 {[%clk 0:02:44.4]} 5. h3 {[%clk 0:02:35.7]}
5... Bxf3 {[%clk 0:02:43.8]} 6. Qxf3 {[%clk 0:02:36.6]} 6... e6 {[%clk
0:02:42.4]} 7. d3 {[%clk 0:02:21.7]} 7... Bb4 {[%clk 0:02:36.5]} 8. Bd2 {[%clk
0:02:16.9]} 8... d4 {[%clk 0:02:34.1]} 9. Nb1 {[%clk 0:02:16.1]} 9... Bxd2+
{[%clk 0:02:31.9]} 10. Nxd2 {[%clk 0:02:17]} 10... Qa5 {[%clk 0:02:29.7]} 11. a3
{[%clk 0:01:56.2]} 11... c5 {[%clk 0:02:27.6]} 12. e5 {[%clk 0:01:39.4]} 12...
Nc6 {[%clk 0:02:19.5]} 13. g4 {[%clk 0:01:21.6]} 13... Nge7 {[%clk 0:02:14.7]}
14. Bg2 {[%clk 0:01:19.2]} 14... O-O {[%clk 0:02:09.7]} 15. Qe2 {[%clk
0:01:13.4]} 15... b5 {[%clk 0:02:02.4]} 16. O-O {[%clk 0:01:06.1]} 16... Rac8
{[%clk 0:01:53.5]} 17. f5 {[%clk 0:01:04.9]} 17... exf5 {[%clk 0:01:45.4]} 18.
gxf5 {[%clk 0:01:05.8]} 18... Rfe8 {[%clk 0:01:44.2]} 19. f6 {[%clk 0:01:02.2]}
19... Ng6 {[%clk 0:01:41.5]} 20. fxg7 {[%clk 0:00:28.1]} 20... Ncxe5 {[%clk
0:01:36.2]} 21. Ne4 {[%clk 0:00:27.5]} 21... Kxg7 {[%clk 0:01:26.5]} 22. Qh5
{[%clk 0:00:21.3]} 22... Qb6 {[%clk 0:01:12.7]} 23. Rf6 {[%clk 0:00:20.1]} 23...
Re6 {[%clk 0:01:03.7]} 24. Raf1 {[%clk 0:00:18.6]} 24... Rxf6 {[%clk 0:01:02.8]}
25. Rxf6 {[%clk 0:00:13.8]} 25... Qxf6 {[%clk 0:00:57.7]} 26. Nxf6 {[%clk
0:00:12.8]} 26... Kxf6 {[%clk 0:00:57.5]} 27. h4 {[%clk 0:00:09.9]} 27... h6
{[%clk 0:00:48.5]} 28. Qxh6 {[%clk 0:00:08.4]} 28... Ke7 {[%clk 0:00:44.1]} 29.
Qg5+ {[%clk 0:00:08.4]} 29... Kd6 {[%clk 0:00:43]} 30. Qg3 {[%clk 0:00:08.7]}
30... Rh8 {[%clk 0:00:38.3]} 31. b4 {[%clk 0:00:07.1]} 31... c4 {[%clk
0:00:33.9]} 32. dxc4 {[%clk 0:00:06.4]} 32... bxc4 {[%clk 0:00:33.3]} 33. Qf2
{[%clk 0:00:06.4]} 33... Rxh4 {[%clk 0:00:30.4]} 34. Qf6+ {[%clk 0:00:06.3]}
34... Kc7 {[%clk 0:00:26.6]} 35. Qxa6 {[%clk 0:00:05.8]} 35... d3 {[%clk
0:00:20.3]} 36. Qa7+ {[%clk 0:00:04.3]} 36... Kd6 {[%clk 0:00:18.7]} 37. Qc5+
{[%clk 0:00:03.7]} 37... Ke6 {[%clk 0:00:18.5]} 38. cxd3 {[%clk 0:00:02]} 38...
cxd3 {[%clk 0:00:17.4]} 39. Qd5+ {[%clk 0:00:02.1]} 39... Kf6 {[%clk 0:00:16.9]}
40. b5 {[%clk 0:00:02.3]} 40... Rg4 {[%clk 0:00:13.9]} 41. Qd8+ {[%clk
0:00:02.1]} 41... Kg7 {[%clk 0:00:12.6]} 42. Kf2 {[%clk 0:00:02.4]} 42... Nf4
{[%clk 0:00:09.9]} 43. Qd4 {[%clk 0:00:01.7]} 43... Rxg2+ {[%clk 0:00:08.7]} 0-1

[Event "Early-Titled-Tuesday-Blitz-January-23-2024"]
[Site "Chess.com"]
[Date "2024.01.23"]
[Round "2"]
[White "Rud_Makarian"]
[Black "JiaHaoxiang"]
[Result "1-0"]
[WhiteElo "3013"]
[BlackElo "2626"]
[TimeControl "180+1"]
[EndTime "8:18:12 PST"]
[Termination "Rud_Makarian won by checkmate"]

1. d4 {[%clk 0:03:00.9]} 1... d5 {[%clk 0:02:59.4]} 2. c4 {[%clk 0:03:01.4]}
2... c6 {[%clk 0:02:58.7]} 3. Nf3 {[%clk 0:03:02]} 3... Nf6 {[%clk 0:02:58.2]}
4. Nc3 {[%clk 0:03:02.6]} 4... dxc4 {[%clk 0:02:58.4]} 5. g3 {[%clk 0:03:02.1]}
5... b5 {[%clk 0:02:57.6]} 6. Bg2 {[%clk 0:03:02]} 6... e6 {[%clk 0:02:54.8]} 7.
Ne5 {[%clk 0:03:02.3]} 7... Nd5 {[%clk 0:02:50.9]} 8. O-O {[%clk 0:03:02.1]}
8... Be7 {[%clk 0:02:48.3]} 9. a4 {[%clk 0:02:56.7]} 9... b4 {[%clk 0:02:42.3]}
10. Nxd5 {[%clk 0:01:51.3]} 10... cxd5 {[%clk 0:02:38.6]} 11. Nxc4 {[%clk
0:01:16.2]} 11... Nd7 {[%clk 0:02:35.1]} 12. Nd2 {[%clk 0:01:12.9]} 12... Ba6
{[%clk 0:02:30.9]} 13. Re1 {[%clk 0:01:12.5]} 13... O-O {[%clk 0:02:29.7]} 14.
e4 {[%clk 0:01:10.9]} 14... dxe4 {[%clk 0:02:29.5]} 15. Nxe4 {[%clk 0:01:11.8]}
15... Rc8 {[%clk 0:02:29.4]} 16. Bf4 {[%clk 0:01:01.9]} 16... Nf6 {[%clk
0:02:20.5]} 17. Nc5 {[%clk 0:01:01.9]} 17... Bxc5 {[%clk 0:02:06.9]} 18. dxc5
{[%clk 0:01:02.8]} 18... Qa5 {[%clk 0:01:11.4]} 19. Bd6 {[%clk 0:00:56.5]} 19...
Rfd8 {[%clk 0:01:11.4]} 20. Qb3 {[%clk 0:00:51.9]} 20... Ne8 {[%clk 0:01:10.9]}
21. Bf4 {[%clk 0:00:19.3]} 21... Qxc5 {[%clk 0:01:07.6]} 22. Rad1 {[%clk
0:00:18.5]} 22... Bc4 {[%clk 0:01:05.4]} 23. Qe3 {[%clk 0:00:16.1]} 23... Qxe3
{[%clk 0:01:00.1]} 24. Bxe3 {[%clk 0:00:17]} 24... Bb3 {[%clk 0:01:00.4]} 25.
Rxd8 {[%clk 0:00:16.6]} 25... Rxd8 {[%clk 0:01:01.3]} 26. a5 {[%clk 0:00:15.9]}
26... a6 {[%clk 0:00:51]} 27. Bf1 {[%clk 0:00:12.2]} 27... Nd6 {[%clk 0:00:47]}
28. Bb6 {[%clk 0:00:11.4]} 28... Ra8 {[%clk 0:00:43.6]} 29. Rc1 {[%clk
0:00:11.8]} 29... Bd5 {[%clk 0:00:37.6]} 30. Be2 {[%clk 0:00:08.2]} 30... h6
{[%clk 0:00:32.2]} 31. f3 {[%clk 0:00:08.4]} 31... Kh7 {[%clk 0:00:31.3]} 32.
Kf2 {[%clk 0:00:09.2]} 32... g5 {[%clk 0:00:24.9]} 33. Rc7 {[%clk 0:00:08.5]}
33... Kg7 {[%clk 0:00:20]} 34. Bd4+ {[%clk 0:00:08.2]} 34... Kf8 {[%clk
0:00:18.3]} 35. Bc5 {[%clk 0:00:08.6]} 35... Rd8 {[%clk 0:00:18.3]} 36. Bxa6
{[%clk 0:00:06.5]} 36... Kg7 {[%clk 0:00:18.2]} 37. Be2 {[%clk 0:00:06.6]} 37...
Nc4 {[%clk 0:00:17.5]} 38. Bxb4 {[%clk 0:00:06.6]} 38... Nd6 {[%clk 0:00:08]}
39. a6 {[%clk 0:00:06.3]} 39... Kg6 {[%clk 0:00:07.2]} 40. Bxd6 {[%clk
0:00:06.1]} 40... Rxd6 {[%clk 0:00:07.2]} 41. b4 {[%clk 0:00:06.9]} 41... Rb6
{[%clk 0:00:06.9]} 42. b5 {[%clk 0:00:07.3]} 42... Kf6 {[%clk 0:00:07.3]} 43. a7
{[%clk 0:00:05.4]} 43... e5 {[%clk 0:00:07.3]} 44. Rc8 {[%clk 0:00:05.5]} 44...
Bb7 {[%clk 0:00:07]} 45. Rb8 {[%clk 0:00:06]} 45... Ke6 {[%clk 0:00:07.1]} 46.
Rxb7 {[%clk 0:00:06]} 46... Rxb7 {[%clk 0:00:07.7]} 47. a8=Q {[%clk 0:00:06.6]}
47... Rd7 {[%clk 0:00:08.2]} 48. Qe8+ {[%clk 0:00:07]} 48... Re7 {[%clk
0:00:08.6]} 49. Qc6+ {[%clk 0:00:07.1]} 49... Kf5 {[%clk 0:00:08.8]} 50. g4+
{[%clk 0:00:06.9]} 50... Kf4 {[%clk 0:00:09.3]} 51. Qf6# {[%clk 0:00:07.2]} 1-0

[Event "Early-Titled-Tuesday-Blitz-January-23-2024"]
[Site "Chess.com"]
[Date "2024.01.23"]
[Round "2"]
[White "MatthewG-p4p"]
[Black "malakismayil"]
[Result "1-0"]
[WhiteElo "2888"]
[BlackElo "2586"]
[TimeControl "180+1"]
[EndTime "8:18:12 PST"]
[Termination "MatthewG-p4p won on time"]

1. f4 {[%clk 0:02:40.7]} 1... d5 {[%clk 0:02:59.1]} 2. Nf3 {[%clk 0:02:40.7]}
2... Nf6 {[%clk 0:02:58.8]} 3. g3 {[%clk 0:02:41.4]} 3... Bf5 {[%clk 0:02:57.5]}
4. Bg2 {[%clk 0:02:42]} 4... e6 {[%clk 0:02:58]} 5. O-O {[%clk 0:02:42.7]} 5...
Be7 {[%clk 0:02:57.1]} 6. d3 {[%clk 0:02:43.3]} 6... O-O {[%clk 0:02:57]} 7. Nc3
{[%clk 0:02:43.9]} 7... c5 {[%clk 0:02:55]} 8. Ne5 {[%clk 0:02:44.3]} 8... Nc6
{[%clk 0:02:53.9]} 9. Nxc6 {[%clk 0:02:42.9]} 9... bxc6 {[%clk 0:02:54]} 10. e4
{[%clk 0:02:43.8]} 10... Bg6 {[%clk 0:02:20.8]} 11. Qf3 {[%clk 0:02:20.5]} 11...
h5 {[%clk 0:02:05.9]} 12. h3 {[%clk 0:02:17.1]} 12... c4 {[%clk 0:01:59.4]} 13.
e5 {[%clk 0:02:05.9]} 13... Nd7 {[%clk 0:01:54.4]} 14. dxc4 {[%clk 0:02:06.2]}
14... Nc5 {[%clk 0:01:41.7]} 15. cxd5 {[%clk 0:02:04.1]} 15... cxd5 {[%clk
0:01:42.6]} 16. f5 {[%clk 0:01:41.2]} 16... Bxf5 {[%clk 0:01:30.2]} 17. Nxd5
{[%clk 0:01:40.9]} 17... Rc8 {[%clk 0:00:54]} 18. Nxe7+ {[%clk 0:01:25.7]} 18...
Qxe7 {[%clk 0:00:54.9]} 19. Qxh5 {[%clk 0:01:19.9]} 19... Bxc2 {[%clk
0:00:51.7]} 20. Bg5 {[%clk 0:01:19.6]} 20... Qc7 {[%clk 0:00:50.5]} 21. Rae1
{[%clk 0:00:56]} 21... Bg6 {[%clk 0:00:47.8]} 22. Qh4 {[%clk 0:00:54.3]} 22...
Nd3 {[%clk 0:00:45.6]} 23. Re3 {[%clk 0:00:54.7]} 23... Qc5 {[%clk 0:00:41.6]}
24. Kh2 {[%clk 0:00:50.4]} 24... Nxe5 {[%clk 0:00:36.6]} 25. Rfe1 {[%clk
0:00:38.4]} 25... Nc4 {[%clk 0:00:36.5]} 26. Rc3 {[%clk 0:00:32.2]} 26... Qa5
{[%clk 0:00:08.7]} 27. Rec1 {[%clk 0:00:23.3]} 27... Nb6 {[%clk 0:00:08.1]} 28.
Bd2 {[%clk 0:00:18]} 28... Qxa2 {[%clk 0:00:06.4]} 29. Rxc8 {[%clk 0:00:16.8]}
29... Nxc8 {[%clk 0:00:05.9]} 30. Bc3 {[%clk 0:00:15.6]} 30... Nb6 {[%clk
0:00:04.2]} 31. Qd4 {[%clk 0:00:15.8]} 31... f6 {[%clk 0:00:03.6]} 32. Qd6
{[%clk 0:00:16]} 32... Bf7 {[%clk 0:00:03.4]} 33. Rf1 {[%clk 0:00:14.9]} 33...
Qa4 {[%clk 0:00:03.4]} 34. Rf4 {[%clk 0:00:14.8]} 34... Qd7 {[%clk 0:00:03.6]}
35. Qc5 {[%clk 0:00:14.1]} 35... e5 {[%clk 0:00:04.1]} 36. Rg4 {[%clk
0:00:13.8]} 36... Rc8 {[%clk 0:00:04.5]} 37. Qf2 {[%clk 0:00:11.9]} 37... Be6
{[%clk 0:00:05]} 38. Rh4 {[%clk 0:00:08.5]} 38... Bd5 {[%clk 0:00:04.9]} 39. Bf1
{[%clk 0:00:07]} 39... Qe6 {[%clk 0:00:04.6]} 40. Rg4 {[%clk 0:00:07.2]} 40...
Rf8 {[%clk 0:00:02.8]} 41. Rh4 {[%clk 0:00:06.6]} 41... f5 {[%clk 0:00:03.3]}
42. Qe3 {[%clk 0:00:06.8]} 42... e4 {[%clk 0:00:03.1]} 43. Rh5 {[%clk
0:00:07.1]} 43... Rf7 {[%clk 0:00:03]} 44. Rg5 {[%clk 0:00:07.3]} 44... Nc4
{[%clk 0:00:03.1]} 45. Qd4 {[%clk 0:00:07.8]} 45... Qe7 {[%clk 0:00:01.5]} 46.
h4 {[%clk 0:00:06.1]} 46... Be6 {[%clk 0:00:01.1]} 47. Bxc4 {[%clk 0:00:06.6]}
1-0

[Event "Early-Titled-Tuesday-Blitz-January-23-2024"]
[Site "Chess.com"]
[Date "2024.01.23"]
[Round "2"]
[White "viktorskliarov"]
[Black "Akylbek2021"]
[Result "0-1"]
[WhiteElo "2661"]
[BlackElo "2260"]
[TimeControl "180+1"]
[EndTime "8:18:14 PST"]
[Termination "Akylbek2021 won by resignation"]

1. e4 {[%clk 0:03:00.9]} 1... e5 {[%clk 0:02:59.3]} 2. Nc3 {[%clk 0:02:57]} 2...
Nf6 {[%clk 0:02:59.2]} 3. Bc4 {[%clk 0:02:53.2]} 3... Bc5 {[%clk 0:02:53.7]} 4.
d3 {[%clk 0:02:49.9]} 4... O-O {[%clk 0:02:48.6]} 5. h3 {[%clk 0:02:46.5]} 5...
c6 {[%clk 0:02:48.5]} 6. Bb3 {[%clk 0:02:43.5]} 6... d5 {[%clk 0:02:48.3]} 7.
Qf3 {[%clk 0:02:41.7]} 7... d4 {[%clk 0:02:33.1]} 8. Nce2 {[%clk 0:02:29.9]}
8... a5 {[%clk 0:02:30.9]} 9. a4 {[%clk 0:02:28.9]} 9... Be6 {[%clk 0:02:29.9]}
10. Bxe6 {[%clk 0:01:40.4]} 10... fxe6 {[%clk 0:02:30]} 11. g4 {[%clk 0:01:41]}
11... Nd5 {[%clk 0:02:03.2]} 12. Qg3 {[%clk 0:01:18.1]} 12... Nb4 {[%clk
0:02:02.9]} 13. Kd1 {[%clk 0:01:17.5]} 13... Qf6 {[%clk 0:01:48.5]} 14. f3
{[%clk 0:01:04.6]} 14... Nd7 {[%clk 0:01:24.8]} 15. h4 {[%clk 0:01:01.6]} 15...
Be7 {[%clk 0:00:35.3]} 16. g5 {[%clk 0:00:54.2]} 16... Qf7 {[%clk 0:00:35.1]}
17. h5 {[%clk 0:00:52.2]} 17... b5 {[%clk 0:00:25.2]} 18. g6 {[%clk 0:00:46.1]}
18... Qf6 {[%clk 0:00:25.5]} 19. gxh7+ {[%clk 0:00:36.7]} 19... Kh8 {[%clk
0:00:25.7]} 20. Bd2 {[%clk 0:00:14.9]} 20... Nc5 {[%clk 0:00:22.4]} 21. axb5
{[%clk 0:00:11.9]} 21... cxb5 {[%clk 0:00:17.7]} 22. Qg6 {[%clk 0:00:12]} 22...
Na4 {[%clk 0:00:11.6]} 23. b3 {[%clk 0:00:09.7]} 23... Nb6 {[%clk 0:00:04.5]}
24. Qxf6 {[%clk 0:00:07.5]} 24... Bxf6 {[%clk 0:00:05.1]} 25. Nh3 {[%clk
0:00:07.7]} 25... Kxh7 {[%clk 0:00:03.3]} 26. Ng5+ {[%clk 0:00:07.5]} 26... Bxg5
{[%clk 0:00:03.7]} 27. Bxg5 {[%clk 0:00:08.4]} 27... Rxf3 {[%clk 0:00:04.1]} 28.
Be7 {[%clk 0:00:07.4]} 28... Nc6 {[%clk 0:00:02.4]} 29. Bc5 {[%clk 0:00:06.9]}
29... Nd7 {[%clk 0:00:01.9]} 30. Bd6 {[%clk 0:00:07.6]} 30... a4 {[%clk
0:00:02.1]} 31. bxa4 {[%clk 0:00:07.4]} 31... bxa4 {[%clk 0:00:03]} 32. Kd2
{[%clk 0:00:07.5]} 32... Rf2 {[%clk 0:00:03]} 33. Raf1 {[%clk 0:00:06.1]} 33...
Rxf1 {[%clk 0:00:03.1]} 34. Rxf1 {[%clk 0:00:07]} 34... a3 {[%clk 0:00:03.8]}
35. Ra1 {[%clk 0:00:07.1]} 35... a2 {[%clk 0:00:04.4]} 36. Nc1 {[%clk
0:00:07.4]} 36... Kh6 {[%clk 0:00:02.8]} 37. Rxa2 {[%clk 0:00:07.1]} 37... Rxa2
{[%clk 0:00:03.5]} 38. Nxa2 {[%clk 0:00:07.6]} 38... Kxh5 {[%clk 0:00:04.4]} 39.
c3 {[%clk 0:00:07.8]} 39... g5 {[%clk 0:00:03.9]} 40. c4 {[%clk 0:00:07.8]}
40... g4 {[%clk 0:00:02.7]} 41. Ke2 {[%clk 0:00:08.1]} 41... Kh4 {[%clk
0:00:02.4]} 42. Kf1 {[%clk 0:00:08.5]} 42... Kh3 {[%clk 0:00:02.8]} 43. Kg1
{[%clk 0:00:08.6]} 43... Kg3 {[%clk 0:00:03.3]} 44. Nb4 {[%clk 0:00:07.8]} 44...
Nxb4 {[%clk 0:00:02.7]} 45. Bxb4 {[%clk 0:00:08.5]} 45... Kf3 {[%clk 0:00:03.4]}
46. c5 {[%clk 0:00:08]} 46... Nb8 {[%clk 0:00:02.2]} 47. Ba5 {[%clk 0:00:08.2]}
47... Nc6 {[%clk 0:00:02]} 48. Bd2 {[%clk 0:00:07.9]} 48... Ke2 {[%clk
0:00:02.2]} 49. Bg5 {[%clk 0:00:08.1]} 49... Kxd3 {[%clk 0:00:02.8]} 0-1